bitfinex/quotes_BTCUSD_20240613
["timestamp","ask_amount","ask_price","bid_price","bid_amount"]
[1718310754092,0.73332356,66672.0,66671.0,0.01548952]
[1718310754748,0.77829954,66672.0,66671.0,0.01548952]
[1718310755663,0.73332356,66672.0,66671.0,0.01548952]
[1718310755899,0.77829243,66672.0,66671.0,0.01548952]
[1718310756365,0.49526462,66672.0,66671.0,0.00136836]
[1718310756602,0.0471772,66666.0,66665.0,0.00855]
[1718310756830,0.30818986,66666.0,66665.0,0.00855]
[1718310757052,0.30818986,66666.0,66665.0,0.02885]
[1718310757507,0.30818986,66666.0,66665.0,0.03532184]
[1718310757728,0.2983703,66666.0,66665.0,0.03532184]
[1718310757952,0.3123703,66666.0,66665.0,0.03532184]
[1718310758415,0.32218986,66666.0,66665.0,0.03532184]
[1718310758636,0.33618986,66666.0,66665.0,0.03532184]
[1718310758860,0.33618986,66666.0,66665.0,0.02885]
[1718310761732,0.33618986,66666.0,66665.0,0.01595]
[1718310762404,0.33618744,66666.0,66665.0,0.01595]
[1718310762645,0.40728744,66666.0,66665.0,0.01595]
[1718310763343,0.32636788,66666.0,66665.0,0.01595]
[1718310763556,0.33618744,66666.0,66665.0,0.01595]
[1718310764000,0.33618744,66666.0,66665.0,0.02885]
[1718310764367,0.18204795,66666.0,66665.0,0.02903044]
[1718310764566,0.18204795,66666.0,66665.0,0.03550228]
[1718310764567,0.10981632,66666.0,66665.0,0.03550228]
[1718310764750,0.10981632,66666.0,66665.0,0.36920365]
[1718310765402,0.09581632,66666.0,66665.0,0.10749788]
[1718310765600,0.09581632,66666.0,66665.0,0.61135847]
[1718310765981,0.0371772,66666.0,66665.0,0.65129019]
[1718310766181,0.0471772,66666.0,66665.0,0.65129019]
[1718310766387,0.01,66666.0,66665.0,0.66929717]
[1718310766593,0.01,66666.0,66665.0,0.70819717]
[1718310766802,0.01,66666.0,66665.0,0.76129019]
[1718310767012,0.018,66666.0,66665.0,0.76129019]
[1718310767379,0.00093501,66672.0,66665.0,0.66989019]
[1718310767583,0.00093501,66672.0,66671.0,0.09158044]
[1718310767584,0.03811221,66672.0,66671.0,0.09158044]
[1718310767814,0.00093501,66672.0,66671.0,0.4150039]
[1718310767989,0.03811221,66672.0,66671.0,0.73376208]
[1718310768313,0.03811221,66672.0,66671.0,0.51851824]
[1718310768535,0.03811221,66672.0,66671.0,0.09923475]
[1718310768669,0.03911221,66672.0,66671.0,0.16658705]
[1718310769077,0.03911221,66672.0,66671.0,0.16758705]
[1718310769302,0.03911221,66672.0,66671.0,0.1451214]
[1718310769899,0.03811221,66672.0,66671.0,0.1451214]
[1718310770155,0.00093501,66672.0,66671.0,0.1451214]
[1718310770383,0.00093501,66672.0,66671.0,0.10123475]
[1718310770556,0.00093501,66672.0,66671.0,0.14610773]
[1718310770754,0.00093501,66672.0,66671.0,0.10123475]
[1718310771163,0.03811221,66672.0,66671.0,0.14609602]
[1718310772168,0.03811221,66672.0,66671.0,0.10123475]
[1718310772775,0.00093501,66672.0,66671.0,0.10123475]
[1718310772976,0.03811221,66672.0,66671.0,0.10123475]
[1718310774805,0.00093501,66672.0,66671.0,0.10123475]
[1718310775303,0.03811221,66672.0,66671.0,0.10123475]
[1718310777095,0.00093501,66672.0,66671.0,0.10123475]
[1718310778970,0.03811221,66672.0,66671.0,0.10123475]
[1718310780805,0.04811221,66672.0,66671.0,0.03013475]
[1718310784779,0.04811221,66672.0,66671.0,0.02913475]
[1718310786072,0.04811221,66672.0,66671.0,0.03013475]
[1718310786275,0.04811221,66672.0,66671.0,0.02913475]
[1718310787483,0.03811221,66672.0,66671.0,0.02913475]
[1718310788278,0.04811221,66672.0,66671.0,0.02913475]
[1718310790386,0.04811221,66672.0,66671.0,0.02895431]
[1718310791407,0.04811221,66672.0,66671.0,0.00865431]
[1718310791408,0.16887089,66672.0,66671.0,0.00865431]
[1718310791639,0.09275133,66672.0,66671.0,0.001]
[1718310792279,0.09275133,66672.0,66671.0,0.00951022]
[1718310792496,0.09275133,66672.0,66671.0,0.00185]
[1718310792712,0.09275133,66672.0,66671.0,0.00085]
[1718310792914,0.09275133,66672.0,66671.0,0.00185]
[1718310793137,0.25157089,66672.0,66671.0,0.00185]
[1718310793312,0.25157089,66672.0,66671.0,0.00085]
[1718310793313,0.46699082,66672.0,66671.0,0.00085]
[1718310793780,0.47099082,66672.0,66671.0,0.00085]
[1718310794270,0.57099082,66672.0,66671.0,0.00085]
[1718310794767,0.62918765,66672.0,66671.0,0.00085]
[1718310795000,0.62318765,66672.0,66671.0,0.00085]
[1718310795421,0.63518765,66672.0,66671.0,0.00085]
[1718310795624,0.61918765,66672.0,66671.0,0.00085]
[1718310796024,0.62818765,66672.0,66671.0,0.00085]
[1718310796236,0.64596713,66672.0,66671.0,0.00085]
[1718310796563,0.65096713,66672.0,66671.0,0.00085]
[1718310797022,0.66496713,66672.0,66671.0,0.00085]
[1718310797259,0.5987703,66672.0,66671.0,0.00085]
[1718310797380,0.40785074,66672.0,66671.0,0.00085]
[1718310797583,0.40407126,66672.0,66671.0,0.00085]
[1718310797812,0.11075133,66672.0,66671.0,0.02133044]
[1718310798018,0.11075133,66672.0,66671.0,0.09225]
[1718310798019,0.12075133,66672.0,66671.0,0.09225]
[1718310798230,0.12075133,66672.0,66671.0,0.09243044]
[1718310798452,0.10675133,66672.0,66671.0,0.10405258]
[1718310798696,0.10675133,66672.0,66671.0,0.03277214]
[1718310798909,0.10675133,66672.0,66671.0,0.01247214]
[1718310799141,0.12075133,66672.0,66671.0,0.01247214]
[1718310799351,0.10675133,66672.0,66671.0,0.01247214]
[1718310799571,0.09275133,66672.0,66671.0,0.01247214]
[1718310799962,0.10475133,66672.0,66671.0,0.01247214]
[1718310800676,0.11875133,66672.0,66671.0,0.01247214]
[1718310801727,0.07411221,66672.0,66671.0,0.01247214]
[1718310802139,0.11875133,66672.0,66671.0,0.01247214]
[1718310804022,0.11875133,66672.0,66671.0,0.01265258]
[1718310804368,0.11875133,66672.0,66671.0,0.01247214]
[1718310804776,0.11875133,66672.0,66671.0,0.00085]
[1718310805933,0.11875133,66672.0,66671.0,0.01246188]
[1718310806141,0.11875133,66672.0,66671.0,0.00085]
[1718310806986,0.19945133,66672.0,66671.0,0.01246188]
[1718310807133,0.19945133,66672.0,66671.0,0.00085]
[1718310807333,0.20927089,66672.0,66671.0,0.01246188]
[1718310807543,0.27167089,66672.0,66671.0,0.01246188]
[1718310807743,0.27167089,66672.0,66671.0,0.00085]
[1718310808125,0.41599082,66672.0,66671.0,0.00085]
[1718310808327,0.40617126,66672.0,66671.0,0.00085]
[1718310808551,0.41599082,66672.0,66671.0,0.00085]
[1718310808750,0.40617126,66672.0,66671.0,0.00085]
[1718310809593,0.41599082,66672.0,66671.0,0.00085]
[1718310810968,0.11875133,66672.0,66671.0,0.00085]
[1718310811183,0.11875133,66672.0,66671.0,0.01242378]
[1718310811387,0.11875133,66672.0,66671.0,0.00085]
[1718310811608,0.11875133,66672.0,66671.0,0.01242378]
[1718310811821,0.12857089,66672.0,66671.0,0.00085]
[1718310813189,0.11875133,66672.0,66671.0,0.00085]
[1718310813566,0.12857089,66672.0,66671.0,0.00085]
[1718310813770,0.11875133,66672.0,66671.0,0.00085]
[1718310814366,0.12857089,66672.0,66671.0,0.00085]
[1718310815091,0.11875133,66672.0,66671.0,0.00085]
[1718310818010,0.19725133,66672.0,66671.0,0.00085]
[1718310818621,0.20707089,66672.0,66671.0,0.00085]
[1718310826491,0.19725133,66672.0,66671.0,0.00085]
[1718310826711,0.20707089,66672.0,66671.0,0.00085]
[1718310827340,0.2252506,66672.0,66671.0,0.00085]
[1718310827937,0.2860506,66672.0,66671.0,0.00085]
[1718310828792,0.43037053,66672.0,66671.0,0.00085]
[1718310830130,0.42055097,66672.0,66671.0,0.00085]
[1718310836418,0.42055097,66672.0,66671.0,0.01044227]
[1718310836847,0.42014502,66672.0,66671.0,0.01044227]
[1718310839763,0.40196531,66672.0,66671.0,0.01044227]
[1718310842977,0.41968901,66672.0,66671.0,0.01044227]
[1718310846113,0.41968901,66672.0,66671.0,0.01062271]
[1718310846114,0.10834538,66672.0,66671.0,0.01062271]
[1718310846543,0.10834538,66672.0,66671.0,0.05543572]
[1718310846544,0.11834538,66672.0,66671.0,0.05543572]
[1718310850482,0.10834538,66672.0,66671.0,0.27652572]
[1718310850658,0.02652906,66672.0,66671.0,0.93029052]
[1718310850862,0.02652906,66672.0,66671.0,1.09481411]
[1718310852092,0.00052906,66672.0,66671.0,1.09481411]
[1718310852618,0.00652906,66672.0,66671.0,1.09481411]
[1718310852831,0.04370626,66672.0,66671.0,1.02371411]
[1718310853041,0.04370626,66672.0,66671.0,1.09481411]
[1718310853276,0.00652906,66672.0,66671.0,1.02371411]
[1718310853479,0.00652906,66672.0,66671.0,1.09481411]
[1718310854920,0.04370626,66672.0,66671.0,1.09481411]
[1718310855309,0.00652906,66672.0,66671.0,1.09481411]
[1718310857417,0.00652906,66672.0,66671.0,1.1099362]
[1718310860167,0.04370626,66672.0,66671.0,1.1099362]
[1718310860342,0.04370626,66672.0,66671.0,1.17738854]
[1718310861535,0.00652906,66672.0,66671.0,1.17738854]
[1718310867320,0.04370626,66672.0,66671.0,1.10628854]
[1718310867522,0.04370626,66672.0,66671.0,1.16448854]
[1718310867762,0.04370626,66672.0,66671.0,1.15708854]
[1718310868542,0.00652906,66672.0,66671.0,1.17448854]
[1718310869111,0.00652906,66672.0,66671.0,0.86341601]
[1718310869321,0.00652906,66672.0,66671.0,1.46443319]
[1718310869458,0.00652906,66672.0,66671.0,1.16445319]
[1718310870756,0.00652906,66672.0,66671.0,1.15705319]
[1718310871175,0.00652906,66672.0,66671.0,0.84601601]
[1718310871375,0.00652906,66672.0,66671.0,1.15705924]
[1718310873306,0.00652906,66672.0,66671.0,1.45703924]
[1718310873682,0.00652906,66672.0,66671.0,1.46703924]
[1718310874237,0.00652906,66672.0,66671.0,1.15705924]
[1718310874437,0.00652906,66672.0,66671.0,1.17445924]
[1718310874648,0.00652906,66672.0,66671.0,1.47443924]
[1718310875114,0.00652906,66672.0,66671.0,1.46443924]
[1718310875294,0.00652906,66672.0,66671.0,1.15705924]
[1718310875494,0.00652906,66672.0,66671.0,1.08595924]
[1718310875695,0.00652906,66672.0,66671.0,1.15705924]
[1718310878053,0.12580626,66672.0,66671.0,1.08595924]
[1718310878259,0.12580626,66672.0,66671.0,1.15705924]
[1718310880433,0.12562574,66672.0,66671.0,1.15705924]
[1718310881919,0.08844854,66672.0,66671.0,1.15705924]
[1718310883120,0.12562574,66672.0,66671.0,1.15705924]
[1718310883840,0.08844854,66672.0,66671.0,1.15705924]
[1718310885513,0.12562574,66672.0,66671.0,1.15705924]
[1718310886711,0.12562574,66672.0,66671.0,1.0896069]
[1718310886938,0.08844854,66672.0,66671.0,1.0896069]
[1718310887521,0.08844854,66672.0,66671.0,1.08907012]
[1718310888602,0.12562574,66672.0,66671.0,1.08907012]
[1718310890343,0.12562574,66672.0,66671.0,0.78909012]
[1718310890794,0.13562574,66672.0,66671.0,0.78909012]
[1718310892753,0.12562574,66672.0,66671.0,0.78909012]
[1718310893374,0.13562574,66672.0,66671.0,0.9015291]
[1718310893582,0.13562574,66672.0,66671.0,0.78912178]
[1718310894216,0.13562574,66672.0,66671.0,0.9015291]
[1718310894851,0.13562574,66672.0,66671.0,0.83963426]
[1718310895048,0.13562574,66672.0,66671.0,0.89659142]
[1718310895257,0.12562574,66672.0,66671.0,0.89659142]
[1718310895464,0.13562574,66672.0,66671.0,0.47300455]
[1718310896285,0.12562574,66672.0,66671.0,0.47300455]
[1718310896511,0.13562574,66672.0,66671.0,0.47300455]
[1718310897024,0.00634854,66672.0,66671.0,0.47300455]
[1718310897211,0.00634854,66672.0,66671.0,0.88405089]
[1718310897414,0.00634854,66672.0,66671.0,1.03233524]
[1718310897533,0.00634854,66672.0,66671.0,0.89744446]
[1718310898269,0.00034854,66672.0,66671.0,0.89744446]
[1718310898700,0.00134854,66672.0,66671.0,0.90025672]
[1718310899114,0.00034854,66672.0,66671.0,0.89725672]
[1718310899516,0.00134854,66672.0,66671.0,0.90025672]
[1718310900844,0.00134854,66672.0,66671.0,1.00261656]
[1718310901047,0.03852574,66672.0,66671.0,0.77412656]
[1718310901255,0.03852574,66672.0,66671.0,0.77412392]
[1718310901466,0.03852574,66672.0,66671.0,0.84522392]
[1718310902629,0.03852574,66672.0,66671.0,0.73286672]
[1718310903025,0.00134854,66672.0,66671.0,0.8002839]
[1718310903187,0.03852574,66672.0,66671.0,0.8002839]
[1718310905543,0.03852574,66672.0,66671.0,0.7291839]
[1718310905751,0.03852574,66672.0,66671.0,0.8002839]
[1718310906152,0.03852574,66672.0,66671.0,0.73286672]
[1718310906355,0.04852574,66672.0,66671.0,0.73286672]
[1718310906512,0.04852574,66672.0,66671.0,0.84521104]
[1718310906919,0.04852574,66672.0,66671.0,0.82275035]
[1718310907128,0.03852574,66672.0,66671.0,0.51152357]
[1718310907328,0.18552574,66672.0,66671.0,0.35053994]
[1718310907532,0.18552574,66672.0,66671.0,0.01334227]
[1718310910686,0.38430435,66672.0,66671.0,0.01334227]
[1718310910907,0.37448479,66672.0,66671.0,0.01334227]
[1718310911326,0.37448479,66672.0,66671.0,0.00375]
[1718310911530,0.38330435,66672.0,66671.0,0.00275]
[1718310911992,0.38530435,66672.0,66671.0,0.00275]
[1718310912201,0.38530435,66672.0,66671.0,0.00075]
[1718310912638,0.38930435,66672.0,66671.0,0.00075]
[1718310913252,0.56040435,66672.0,66671.0,0.00075]
[1718310914452,0.55840435,66672.0,66671.0,0.00075]
[1718310914876,0.57240435,66672.0,66671.0,0.00075]
[1718310915443,0.55840435,66672.0,66671.0,0.00075]
[1718310915874,0.56840435,66672.0,66671.0,0.00075]
[1718310916472,0.58240435,66672.0,66671.0,0.00075]
[1718310916810,0.56840435,66672.0,66671.0,0.00075]
[1718310917476,0.46840435,66672.0,66671.0,0.00075]
[1718310917687,0.56840435,66672.0,66671.0,0.00075]
[1718310918742,0.58240435,66672.0,66671.0,0.00075]
[1718310919359,0.19949676,66666.0,66665.0,0.00855]
[1718310919582,0.41491669,66666.0,66665.0,0.00855]
[1718310919960,0.45955581,66666.0,66665.0,0.00855]
[1718310922125,0.55955581,66666.0,66665.0,0.00855]
[1718310922371,0.55955581,66666.0,66661.0,0.00855]
[1718310922372,0.39323588,66662.0,66661.0,0.00855]
[1718310922591,0.60865581,66662.0,66661.0,0.00855]
[1718310922998,0.39323588,66660.0,66659.0,0.00085]
[1718310923233,0.53755581,66660.0,66659.0,0.00085]
[1718310924033,0.05699676,66652.0,66651.0,0.00855]
[1718310924237,0.56345581,66652.0,66651.0,0.00855]
[1718310924643,0.49235581,66652.0,66651.0,0.00855]
[1718310924847,0.56345581,66652.0,66651.0,0.00855]
[1718310925547,0.57745581,66652.0,66651.0,0.00855]
[1718310926880,0.59145581,66652.0,66651.0,0.00855]
[1718310927531,0.76281739,66652.0,66651.0,0.00855]
[1718310928164,0.62745581,66652.0,66651.0,0.00855]
[1718310928379,0.39673588,66648.0,66647.0,0.00855]
[1718310928590,0.61215581,66648.0,66647.0,0.00855]
[1718310931201,0.62615581,66648.0,66647.0,0.00855]
[1718310931406,0.95215581,66648.0,66647.0,0.00855]
[1718310931607,1.12325581,66648.0,66647.0,0.00855]
[1718310931805,1.13725581,66648.0,66647.0,0.00855]
[1718310932430,1.06615581,66648.0,66647.0,0.00855]
[1718310932645,1.13725581,66648.0,66647.0,0.00855]
[1718310935461,1.63725581,66648.0,66647.0,0.00855]
[1718310937840,1.53725581,66648.0,66647.0,0.00855]
[1718310938745,1.40633625,66648.0,66647.0,0.00855]
[1718310938951,0.90963625,66648.0,66647.0,0.00855]
[1718310939151,0.99055581,66648.0,66647.0,0.00855]
[1718310939769,0.97655581,66648.0,66647.0,0.00855]
[1718310940185,0.99055581,66648.0,66647.0,0.00855]
[1718310940660,1.00841516,66648.0,66647.0,0.00855]
[1718310940900,0.99441516,66648.0,66647.0,0.00855]
[1718310941467,0.98041516,66648.0,66647.0,0.00855]
[1718310941674,0.99441516,66648.0,66647.0,0.00855]
[1718310942379,1.00841516,66648.0,66647.0,0.00855]
[1718310943184,0.9274956,66648.0,66647.0,0.00855]
[1718310943347,1.00841516,66648.0,66647.0,0.00855]
[1718310944973,0.93731516,66648.0,66647.0,0.00855]
[1718310945206,1.00841516,66648.0,66647.0,0.00855]
[1718310946122,0.93731516,66648.0,66647.0,0.00855]
[1718310946302,1.00841516,66648.0,66647.0,0.00855]
[1718310946759,0.9274956,66648.0,66647.0,0.00855]
[1718310947166,0.7819956,66648.0,66647.0,0.00855]
[1718310947543,0.7819956,66648.0,66647.0,0.00873044]
[1718310948109,0.7819956,66648.0,66647.0,0.00855]
[1718310948315,0.7539956,66648.0,66647.0,0.00855]
[1718310948725,0.7769956,66648.0,66647.0,0.00855]
[1718310950538,0.7769956,66648.0,66647.0,0.00873044]
[1718310950744,0.7769956,66648.0,66647.0,0.00855]
[1718310950916,0.7769956,66648.0,66647.0,0.00873044]
[1718310951208,0.7769956,66648.0,66647.0,0.00855]
[1718310951435,0.7769956,66648.0,66647.0,0.00873044]
[1718310951621,0.7769956,66648.0,66647.0,0.00855]
[1718310951997,0.7769956,66648.0,66647.0,0.00873044]
[1718310952643,0.75913625,66648.0,66647.0,0.01863853]
[1718310953123,0.75913625,66648.0,66647.0,0.01845809]
[1718310953662,0.75913625,66648.0,66647.0,0.00855]
[1718310957303,0.77707446,66648.0,66647.0,0.00855]
[1718310957727,0.77707446,66648.0,66647.0,0.00873044]
[1718310957954,0.77707446,66648.0,66647.0,0.00855]
[1718310958749,0.77707446,66648.0,66647.0,0.01674397]
[1718310959792,0.77707446,66648.0,66647.0,0.16678797]
[1718310960028,0.77707446,66648.0,66647.0,0.01674397]
[1718310960230,0.77707446,66648.0,66647.0,0.16696841]
[1718310960475,0.77707446,66648.0,66647.0,0.20156841]
[1718310961269,0.77707446,66648.0,66647.0,0.05134397]
[1718310961877,0.76707446,66648.0,66647.0,0.05152441]
[1718310962231,0.76707446,66648.0,66647.0,0.04333044]
[1718310962232,0.77707446,66648.0,66647.0,0.04333044]
[1718310962913,0.77707446,66648.0,66647.0,0.04315]
[1718310963517,0.77707446,66648.0,66647.0,0.05134397]
[1718310963947,0.77707446,66648.0,66647.0,0.20156841]
[1718310963948,0.76707446,66648.0,66647.0,0.20156841]
[1718310964364,0.77707446,66648.0,66647.0,0.05134397]
[1718310964846,0.77707446,66648.0,66647.0,0.04315]
[1718310965078,0.77707446,66648.0,66647.0,0.05134397]
[1718310965540,0.77707446,66648.0,66647.0,0.01674397]
[1718310967101,0.77707446,66648.0,66647.0,0.01692441]
[1718310967476,0.74913625,66648.0,66647.0,0.01692441]
[1718310967679,0.75913625,66648.0,66647.0,0.00873044]
[1718310967896,0.74913625,66648.0,66647.0,0.00873044]
[1718310968094,0.75913625,66648.0,66647.0,0.00873044]
[1718310968745,0.74913625,66648.0,66647.0,0.00873044]
[1718310969565,0.70449713,66648.0,66647.0,0.00873044]
[1718310969766,0.70449713,66648.0,66647.0,0.12733044]
[1718310969767,0.523,66648.0,66647.0,0.12733044]
[1718310970181,0.523,66648.0,66647.0,0.13555912]
[1718310970789,0.56763912,66648.0,66647.0,0.13555912]
[1718310970995,0.523,66648.0,66647.0,0.13555912]
[1718310972931,0.56763912,66648.0,66647.0,0.13555912]
[1718310973375,0.523,66648.0,66647.0,0.13555912]
[1718310973633,0.56763912,66648.0,66647.0,0.58569112]
[1718310973835,0.56763912,66648.0,66647.0,0.53819112]
[1718310974054,0.60481632,66648.0,66647.0,0.16700312]
[1718310975375,0.75913625,66648.0,66647.0,0.01677868]
[1718310975595,0.89573625,66648.0,66647.0,0.01677868]
[1718310975813,0.89573625,66648.0,66647.0,0.00855]
[1718310977485,0.88573625,66648.0,66647.0,0.00855]
[1718310977653,0.87273625,66648.0,66647.0,0.00855]
[1718310977909,0.89573625,66648.0,66647.0,0.00855]
[1718310978316,0.88273625,66648.0,66647.0,0.00855]
[1718310978526,0.87273625,66648.0,66647.0,0.00855]
[1718310978744,0.88673625,66648.0,66647.0,0.00855]
[1718310979373,0.91055581,66648.0,66647.0,0.00855]
[1718310979922,0.41055581,66648.0,66647.0,0.00855]
[1718310980590,0.37273625,66648.0,66647.0,0.00855]
[1718310980987,0.38673625,66648.0,66647.0,0.00855]
[1718310981394,0.40073625,66648.0,66647.0,0.00855]
[1718310981593,0.38255581,66648.0,66647.0,0.00855]
[1718310982121,0.38673625,66648.0,66647.0,0.00855]
[1718310982502,0.40073625,66648.0,66647.0,0.00855]
[1718310983879,0.40509406,66648.0,66647.0,0.00855]
[1718310984101,0.25849406,66648.0,66647.0,0.00873044]
[1718310984430,0.25413625,66648.0,66647.0,0.15877444]
[1718310984633,0.25413625,66648.0,66647.0,0.16703463]
[1718310984776,0.22613625,66648.0,66647.0,0.16703463]
[1718310984980,0.24000725,66648.0,66647.0,0.16703463]
[1718310985198,0.25000725,66648.0,66647.0,0.16703463]
[1718310985568,0.23600725,66648.0,66647.0,0.01681019]
[1718310985829,0.25000725,66648.0,66647.0,0.01681019]
[1718310985956,0.25000725,66648.0,66647.0,0.16685419]
[1718310986599,0.24000725,66648.0,66647.0,0.16703463]
[1718310987228,0.24000725,66648.0,66647.0,0.16685419]
[1718310987448,0.25400725,66648.0,66647.0,0.16685419]
[1718310989111,0.25400725,66648.0,66647.0,0.16703463]
[1718310989423,0.26400725,66648.0,66647.0,0.46712263]
[1718310989847,0.25400725,66648.0,66647.0,0.16703463]
[1718310990551,0.26400725,66648.0,66647.0,0.16685419]
[1718310991160,0.26400725,66648.0,66647.0,0.16703463]
[1718310991368,0.25400725,66648.0,66647.0,0.16685419]
[1718310992334,0.26400725,66648.0,66647.0,0.16685419]
[1718310992984,0.26400725,66648.0,66647.0,0.16703463]
[1718310993608,0.26400725,66648.0,66647.0,0.16685419]
[1718310993810,0.26400725,66648.0,66647.0,0.16703463]
[1718310994013,0.25400725,66648.0,66647.0,0.16703463]
[1718310994218,0.26400725,66648.0,66647.0,0.16687263]
[1718310995086,0.26400725,66648.0,66647.0,0.16669219]
[1718310995626,0.40750725,66648.0,66647.0,0.01664819]
[1718310996208,0.41732681,66648.0,66647.0,0.01664819]
[1718310996412,0.41732681,66648.0,66647.0,0.008388]
[1718311004008,0.40750725,66648.0,66647.0,0.008388]
[1718311005203,0.41732681,66648.0,66647.0,0.008388]
[1718311006251,0.40750725,66648.0,66647.0,0.008388]
[1718311006654,0.42552511,66648.0,66647.0,0.008388]
[1718311008881,0.43534467,66648.0,66647.0,0.008388]
[1718311010984,0.42552511,66648.0,66647.0,0.008388]
[1718311012753,0.43534467,66648.0,66647.0,0.008388]
[1718311013368,0.42552511,66648.0,66647.0,0.008388]
[1718311015367,0.42646012,66648.0,66647.0,0.008388]
[1718311017890,0.42646012,66648.0,66647.0,0.01254635]
[1718311018310,0.42646012,66648.0,66647.0,0.008388]
[1718311018500,0.40844226,66648.0,66647.0,0.008388]
[1718311018926,0.40844226,66648.0,66647.0,0.01253928]
[1718311020053,0.26494226,66648.0,66647.0,0.01253928]
[1718311023371,0.34124226,66648.0,66647.0,0.01253928]
[1718311023573,0.35929782,66648.0,66647.0,0.01253928]
[1718311024884,0.35929782,66648.0,66647.0,0.008388]
[1718311029028,0.35929782,66648.0,66647.0,0.01252316]
[1718311029671,0.35929782,66648.0,66647.0,0.008388]
[1718311029870,0.35929782,66648.0,66647.0,0.01252316]
[1718311030522,0.35929782,66648.0,66647.0,0.0127036]
[1718311033536,0.34124226,66648.0,66647.0,0.01252316]
[1718311033912,0.34124226,66648.0,66647.0,0.008388]
[1718311034114,0.34124226,66648.0,66647.0,0.0125251]
[1718311034315,0.34124226,66648.0,66647.0,0.008388]
[1718311034533,0.40524226,66648.0,66647.0,0.0125251]
[1718311034731,0.41506182,66648.0,66647.0,0.008388]
[1718311034932,0.40524226,66648.0,66647.0,0.008388]
[1718311036074,0.42328901,66648.0,66647.0,0.008388]
[1718311041004,0.42328901,66648.0,66647.0,0.01219469]
[1718311041224,0.43310857,66648.0,66647.0,0.01219469]
[1718311041447,0.42328901,66648.0,66647.0,0.01219469]
[1718311046445,0.42328901,66648.0,66647.0,0.008388]
[1718311047624,0.40524226,66648.0,66647.0,0.008388]
[1718311050934,0.40524226,66648.0,66647.0,0.01221075]
[1718311051153,0.40524226,66648.0,66647.0,0.008388]
[1718311052890,0.40524226,66648.0,66647.0,0.01221075]
[1718311052891,0.42296117,66648.0,66647.0,0.01221075]
[1718311053079,0.42296117,66648.0,66647.0,0.008388]
[1718311053321,0.42296117,66648.0,66647.0,0.01221075]
[1718311057450,0.42139782,66648.0,66647.0,0.01221075]
[1718311060717,0.43121738,66648.0,66647.0,0.01221075]
[1718311062975,0.41349847,66648.0,66647.0,0.01221075]
[1718311063608,0.41349847,66648.0,66647.0,0.008388]
[1718311066391,0.43141269,66648.0,66647.0,0.008388]
[1718311074881,0.41349847,66648.0,66647.0,0.008388]
[1718311079891,0.431715,66648.0,66647.0,0.008388]
[1718311081107,0.531715,66648.0,66647.0,0.008388]
[1718311081313,0.81088161,66648.0,66647.0,0.008388]
[1718311081515,0.24994353,66647.0,66646.0,0.00085]
[1718311081736,0.24994353,66647.0,66636.0,0.00855]
[1718311081737,0.34434353,66637.0,66636.0,0.00855]
[1718311081938,0.65956397,66637.0,66636.0,0.00855]
[1718311082261,0.8881512,66637.0,66636.0,0.00855]
[1718311082452,0.24994353,66633.0,66630.0,0.00855]
[1718311082623,0.23994353,66631.0,66630.0,0.00855]
[1718311082840,0.63846397,66631.0,66630.0,0.00855]
[1718311083270,0.20699676,66626.0,66604.0,0.00855]
[1718311083468,0.75956397,66626.0,66604.0,0.00855]
[1718311083668,0.08994353,66605.0,66604.0,0.00855]
[1718311083873,0.24426346,66605.0,66604.0,0.00855]
[1718311084273,0.2344439,66605.0,66604.0,0.00855]
[1718311084678,0.24426346,66605.0,66604.0,0.00855]
[1718311085236,0.2344439,66605.0,66604.0,0.00855]
[1718311085461,0.2484439,66605.0,66604.0,0.00855]
[1718311086118,0.25826346,66605.0,66604.0,0.00855]
[1718311086560,0.26926346,66605.0,66604.0,0.00855]
[1718311087837,0.25526346,66605.0,66604.0,0.00855]
[1718311088275,0.26926346,66605.0,66604.0,0.00855]
[1718311088479,0.42742342,66605.0,66604.0,0.00855]
[1718311088897,0.55762342,66605.0,66604.0,0.00855]
[1718311089378,0.64272342,66605.0,66604.0,0.00855]
[1718311089810,0.61472342,66605.0,66604.0,0.00855]
[1718311090222,0.55762342,66605.0,66604.0,0.00855]
[1718311090438,0.62872342,66605.0,66604.0,0.00855]
[1718311091519,0.61472342,66605.0,66604.0,0.00855]
[1718311091801,0.62872342,66605.0,66604.0,0.00855]
[1718311092019,0.64272342,66605.0,66604.0,0.00855]
[1718311092255,0.62872342,66605.0,66604.0,0.00855]
[1718311092715,0.64272342,66605.0,66604.0,0.00855]
[1718311093587,0.57162342,66605.0,66604.0,0.00855]
[1718311093796,0.64272342,66605.0,66604.0,0.00855]
[1718311094005,0.49946346,66605.0,66604.0,0.00855]
[1718311094243,0.57056346,66605.0,66604.0,0.00855]
[1718311097353,0.34946346,66605.0,66604.0,0.00855]
[1718311097589,0.2624439,66605.0,66604.0,0.00855]
[1718311097776,0.2624439,66605.0,66604.0,0.04315]
[1718311097903,0.2484439,66605.0,66604.0,0.04662625]
[1718311098954,0.2484439,66605.0,66604.0,0.04315]
[1718311099156,0.2344439,66605.0,66604.0,0.04315]
[1718311099381,0.2344439,66605.0,66604.0,0.00855]
[1718311099619,0.2404439,66605.0,66604.0,0.00855]
[1718311099941,0.2484439,66605.0,66604.0,0.00855]
[1718311100361,0.2614439,66605.0,66604.0,0.00855]
[1718311100909,0.2474439,66605.0,66604.0,0.00855]
[1718311101371,0.2574439,66605.0,66604.0,0.00855]
[1718311101752,0.26726346,66605.0,66604.0,0.00855]
[1718311102563,0.24426346,66605.0,66604.0,0.00855]
[1718311102963,0.27026346,66605.0,66604.0,0.00855]
[1718311105807,0.33296346,66605.0,66604.0,0.00855]
[1718311114232,0.27026346,66605.0,66604.0,0.00855]
[1718311121330,0.30701629,66605.0,66604.0,0.00855]
[1718311121700,0.27026346,66605.0,66604.0,0.00855]
[1718311121904,0.27008281,66605.0,66604.0,0.00855]
[1718311123664,0.26026325,66605.0,66604.0,0.00855]
[1718311124108,0.27008281,66605.0,66604.0,0.00855]
[1718311127170,0.26026325,66605.0,66604.0,0.00855]
[1718311127815,0.27008281,66605.0,66604.0,0.00855]
[1718311130593,0.30680097,66605.0,66604.0,0.00855]
[1718311130841,0.27008281,66605.0,66604.0,0.00855]
[1718311132032,0.26026325,66605.0,66604.0,0.00855]
[1718311132844,0.29699737,66605.0,66604.0,0.00855]
[1718311133125,0.26026325,66605.0,66604.0,0.00855]
[1718311134273,0.29700732,66605.0,66604.0,0.00855]
[1718311134474,0.27857371,66605.0,66604.0,0.00855]
[1718311136554,0.315375,66605.0,66604.0,0.00855]
[1718311137052,0.27857371,66605.0,66604.0,0.00855]
[1718311137646,0.28839327,66605.0,66604.0,0.00855]
[1718311138503,0.27857371,66605.0,66604.0,0.00855]
[1718311139296,0.26026325,66605.0,66604.0,0.00855]